Cogmind - Beta 14 @@@ ROGUE MODE // 2024.08.11 @ 23:34:48 Player: Olafz Result: Destroyed by S-10 Pest with Light Assault Rifle Performance ------------- Evolutions (1) 500 Regions Visited (2) 400 Robots Destroyed (0) 0 Value Destroyed (0) 0 Prototype IDs (0) 0 Alien Tech Used (0) 0 Bonus (200) 200 TOTAL SCORE: 1100 Bonus ------- Pacifist 200 Cogmind --------- Core Integrity 0/400 Matter 115/300 Energy 85/100 System Corruption 0% Temperature Cool (0) Movement Flying (40) Location -9/Materials Parts ------- > --- POWER (1) -------- (None) > --- PROPULSION (2) --- Flight Unit > --- UTILITY (4) ------ Machine Analyzer Machine Analyzer Visual Processing Unit > --- WEAPON (2) ------- (None) > --- INVENTORY (5) ---- Flight Unit Flight Unit Flight Unit Peak State ------------ > --- POWER ------------ (None) > --- PROPULSION ------- Flight Unit Flight Unit > --- UTILITY ---------- Machine Analyzer Machine Analyzer Visual Processing Unit > --- WEAPON ----------- (None) > --- INVENTORY -------- (None) [Rating: 10] Favorites ----------- Power None Propulsion Flight Unit Flight Unit Flight Unit Utility Machine Analyzer Processor Machine Analyzer Weapon None Build | -11 -10 -9 ------- Run | Yrd Mat Mat Slots Evolved 2 | . . 2 Power . | . . . Propulsion . | . . . Utility 2 | . . 2 Weapon . | . . . Parts Attached 7 | . . 7 Power . | . . . Engine . | . . . Core . | . . . Reactor . | . . . Propulsion 4 | . . 4 Treads . | . . . Leg . | . . . Wheel . | . . . Hover . | . . . Flight 4 | . . 4 Utility 3 | . . 3 Device . | . . . Storage . | . . . Processor 3 | . . 3 Hackware . | . . . Protection . | . . . Artifact . | . . . Weapon . | . . . Energy Gun . | . . . Energy Cannon . | . . . Ballistic Gun . | . . . Ballistic Cannon . | . . . Launcher . | . . . Special Weapon . | . . . Impact Weapon . | . . . Slashing Weapon . | . . . Piercing Weapon . | . . . Special Melee Weapon . | . . . Unidentified Prototypes . | . . . Parts Lost 3 | . . 3 Power . | . . . Propulsion 3 | . . 3 Utility . | . . . Weapon . | . . . Highest Loss Streak 2 | . . 2 To Critical Strikes . | . . . Average Slot Usage (%) 33 | . . 39 Flight 7 | . . 8 Processor 25 | . . 30 Peak Build Rating 10 | . . 10 Average Rating 6 | . . 8 On Entrance . | . . . Naked Turns 33 | . 30 3 Heaviest Build . | . . . Greatest Support 4 | 3 3 4 Greatest Overweight (x) . | . . . Average Overweight (x) . | . . . Largest Inventory Capacity 5 | 5 5 5 Average Capacity 5 | 5 5 5 Most Carried 5 | . . 5 Average Carried 1 | . . 1 Final Capacity 5 | 5 5 5 Final Carried 3 | . . 3 Class Distribution -------------------- 100% | Mutant Dominant Class ---------------- Mutant | -10/Materials Mutant | -9/Materials Resources | -11 -10 -9 ----------- Run | Yrd Mat Mat Matter Collected 70 | 70 . . Remotely . | . . . Salvage Created . | . . . Parts . | . . . Haulers Intercepted . | . . . Recyclers Shooed . | . . . Parts Field Recycled . | . . . Retrieved Matter . | . . . Parts Self-Destructed . | . . . Prevented . | . . . Kills | -11 -10 -9 ------- Run | Yrd Mat Mat Combat Hostiles Destroyed . | . . . Classes Destroyed . | . . . Best Kill Streak . | . . . Combat Bots Only . | . . . Max Kills in Single Turn . | . . . Gunslinging . | . . . Exploded . | . . . Melee . | . . . Uniques/NPCs Destroyed . | . . . Combat | -11 -10 -9 -------- Run | Yrd Mat Mat Hostile Shots Fired 96 | . 5 91 Missed 41 | . 1 40 Damage Taken 515 | . 29 486 Core 435 | . 29 406 Absorbed by Shields . | . . . Core Remaining (%) 94 | 100 88 . Volleys Fired . | . . . Largest . | . . . Hottest . | . . . Shots Fired . | . . . Gun . | . . . Cannon . | . . . Launcher . | . . . Special . | . . . Kinetic . | . . . Thermal . | . . . Explosive . | . . . Electromagnetic . | . . . Robot Hit Streak . | . . . Robot Miss Streak . | . . . Penetration Max . | . . . Secondary Targets . | . . . Shots Hit Robots . | . . . Core Hits . | . . . Critical Kills . | . . . Critical Parts Destroyed . | . . . Critical Strikes . | . . . Melee Attacks . | . . . Impact . | . . . Slashing . | . . . Piercing . | . . . Sneak Attacks . | . . . Combat Hostiles . | . . . Follow-up Attacks . | . . . Damage Inflicted . | . . . Guns . | . . . Cannons . | . . . Explosions . | . . . Melee . | . . . Ramming . | . . . Kinetic . | . . . Thermal . | . . . Explosive . | . . . Electromagnetic . | . . . Impact . | . . . Slashing . | . . . Piercing . | . . . Highest Corruption . | . . . Average Corruption . | . . . Corruption Purged . | . . . Corruption Blocked . | . . . Overload Shots . | . . . Overflow Damage . | . . . Projectiles . | . . . Explosions . | . . . Melee . | . . . Knockbacks . | . . . Impact . | . . . Kinetic . | . . . Secondary . | . . . Self-Inflicted Damage . | . . . Shots . | . . . Rammed . | . . . Targets Rammed . | . . . Kicked . | . . . Crushed . | . . . Highest Temperature . | . . . Average Temperature . | . . . Received Heat Transfer 42 | . . 42 Siege Activations . | . . . Robots Corrupted . | . . . Combat Hostiles . | . . . Parts Fried . | . . . Impact Corruptions . | . . . Robots Melted . | . . . Combat Hostiles . | . . . Parts Melted . | . . . Heat Transferred . | . . . Parts Sabotaged . | . . . Parts Stolen . | . . . Parts Stripped . | . . . Power Chain Reactions . | . . . Alert | -11 -10 -9 ------- Run | Yrd Mat Mat Peak Influence 421 | . 75 421 Initial 31 | . . 31 Average 150 | . 13 185 Maximum Alert Level 2 | . . 2 Low Security (%) 74 | 100 100 67 Level 1 16 | . . 20 Level 2 9 | . . 11 Level 3 . | . . . Level 4 . | . . . Level 5 . | . . . High Security . | . . . Max Security . | . . . Squads Dispatched 3 | . . 3 Investigation . | . . . Extermination . | . . . Reinforcement 3 | . . 3 Assault . | . . . Garrison . | . . . Intercept . | . . . Searches Triggered . | . . . Construction Impeded . | . . . Haulers Reinforced . | . . . Active Scanning Responses . | . . . Cargo Convoy Interrupts . | . . . Stealth | -11 -10 -9 --------- Run | Yrd Mat Mat Distress Signals 1 | . . 1 Communications Jammed . | . . . Distress Signals . | . . . Times Spotted 35 | . 5 30 Peak Tracking Total 14 | . 4 14 Tactical Retreats 5 | . 1 4 Traps | -11 -10 -9 ------- Run | Yrd Mat Mat Traps Triggered . | . . . Indirectly . | . . . Trap Hack Attempts . | . . . Triggered . | . . . Disarmed . | . . . Reprogrammed . | . . . Reused . | . . . Traps Extracted . | . . . Installed . | . . . Triggered . | . . . Machines | -11 -10 -9 ---------- Run | Yrd Mat Mat Machines Disabled . | . . . Max in Single Turn . | . . . Machines Repaired . | . . . Machines Dismantled . | . . . Machines Sabotaged . | . . . Overloaded Fab Kills . | . . . Hacking | -11 -10 -9 --------- Run | Yrd Mat Mat Machines Accessed . | . . . Terminals . | . . . Fabricators . | . . . Repair Stations . | . . . Recycling Units . | . . . Scanalyzers . | . . . Garrison Access . | . . . Total Hacks . | . . . Successful . | . . . Failed . | . . . Catastrophic . | . . . Database Lockouts . | . . . Manual . | . . . Terminals . | . . . Fabricators . | . . . Repair Stations . | . . . Recycling Units . | . . . Scanalyzers . | . . . Garrison Access . | . . . Terminal Hacks . | . . . Fabricator Hacks . | . . . Repair Station Hacks . | . . . Recycling Unit Hacks . | . . . Scanalyzer . | . . . Garrison Access Hacks . | . . . Unauthorized Hacks . | . . . Terminals . | . . . Fabricators . | . . . Repair Stations . | . . . Recycling Units . | . . . Scanalyzers . | . . . Garrison Access . | . . . Data Cores Recovered . | . . . Used . | . . . Hacking Detections . | . . . Full Trace Events . | . . . Feedback Events . | . . . Feedback Blocked . | . . . Robot Schematics Acquired . | . . . Robots Built . | . . . Authchips . | . . . Time . | . . . Total Robot Build Rating . | . . . Part Schematics Acquired . | . . . Parts Built . | . . . Authchips . | . . . Time . | . . . Total Part Build Rating . | . . . Parts Repaired . | . . . Time . | . . . Parts Recycled . | . . . Recycled Matter . | . . . Retrieved Matter . | . . . Retrieved Components . | . . . Parts Scanalyzed . | . . . Part Schematics Acquired . | . . . Parts Damaged . | . . . Bothacking | -11 -10 -9 ------------ Run | Yrd Mat Mat Used RIF Installer . | . . . Robots Hacked . | . . . Non-combat . | . . . Combat . | . . . Robot Hacks Applied . | . . . Relay Couplers Released . | . . . Fabnet Peak Effective % . | . . . Robots Rewired . | . . . Allies Hacked . | . . . Hacks Repelled . | . . . Allies | -11 -10 -9 -------- Run | Yrd Mat Mat Total Allies . | . . . Largest Group . | . . . Highest-Rated Group . | . . . Highest-Rated Ally . | . . . Total Orders . | . . . Ally Attacks . | . . . Total Damage . | . . . Kills . | . . . Allies Corrupted . | . . . Allies Melted . | . . . Intel | -11 -10 -9 ------- Run | Yrd Mat Mat Robot Analysis Total . | . . . Derelict Logs Recovered . | . . . Drone Launches . | . . . Drone Recoveries . | . . . Exploration | -11 -10 -9 ------------- Run | Yrd Mat Mat Turns Passed 194 | 9 30 155 Spaces Moved 412 | 18 60 334 Core 143 | 18 60 65 Treads . | . . . Legs . | . . . Wheels . | . . . Hover . | . . . Flight 269 | . . 269 Fastest Speed 40 | 50 50 40 Average Speed 43 | 50 50 41 Slowest Speed 50 | 50 50 50 Overloaded Moves . | . . . Propulsion Burnouts . | . . . Robots Hopped 9 | . . 9 Cave-ins Triggered . | . . . Exploration Rate (%) 22 | 3 18 47 Regions Visited 2 Branch Regions . Pre-discovered Areas . | . . . Known Exits Taken . | . . . Unknown Exits Taken 2 | 1 1 . Scrap Searched . | . . . Spaces Dug . | . . . Terrain Destroyed . | . . . Melee . | . . . Projectile . | . . . AOE . | . . . Terrain Rammed . | . . . Walls Destroyed . | . . . Machines Disabled . | . . . Actions | -11 -10 -9 --------- Run | Yrd Mat Mat Total 413 | 17 59 337 Wait . | . . . Move 393 | 17 59 317 Hop 8 | . . 8 Pick Up 5 | . . 5 Fast Attach 5 | . . 5 Attach 2 | . . 2 Detach . | . . . Swap . | . . . Drop . | . . . Fire . | . . . Melee . | . . . Ram . | . . . Kick . | . . . Crush . | . . . Escape Stasis . | . . . Rewire . | . . . Trap . | . . . Miscellaneous . | . . . Route ------- -11/Scrapyard -10/Materials -9/Materials (discovered 1 exit: [*Min]) History --------- Turn | Location | Event 2 | -11/Scrapyard | Discovered new exit (range 16) 10 | -11/Scrapyard | Entered Materials 33 | -10/Materials | Discovered new exit (range 16) 40 | -10/Materials | Entered another Materials area 40 | -9/Materials | Evolved 2 slots: Utility x2 107 | -9/Materials | Discovered new exit (range 16) 135 | -9/Materials | Core integrity fell below 50% 152 | -9/Materials | Core integrity fell below 20% 195 | -9/Materials | Destroyed by S-10 Pest with Light Assault Rifle Last Messages --------------- Flight Unit destroyed. Acquired Flight Unit. T-07 Excavator is excavating. >> Machine Analyzer network decryption results: Terminal x1 T-07 Excavator is excavating. Flight Unit destroyed. K-01 Serf collects debris. ALERT: Hostiles spotted, dispatching reinforcements to Terminal M012. K-01 Serf collects debris. >> Machine Analyzer network decryption results: Terminal x1 W-16 Scout sends out distress signal. O-16 Technician: "IFF HANDSHAKE FAILED. SECURING TERMINAL." >> Machine Analyzer network decryption results: Terminal x3 O-16 Technician uses terminal to summon reinforcements. ALERT: Hostiles spotted, dispatching reinforcements to Terminal M011. O-16 Technician locks terminal. Flight Unit destroyed. Map ----- +----------------------------------------------------+ | # # #????????????????????????????????? | | # ## ##????????????????????????????????? | | # ??# #?????????????????????????????????? | | # ??# #?????????????????????????????????? | | # ???# #?????????????????????????????????? | | # |???# #?????#########???????????????????? | | ###??### ###???# #???????????????????? | | ?????# ##### #???????????????????? | | ?????# #???????????????????? | | ?????# T #??????????"T"??????? | | ?????# = #???????????????????? | | ?????# ##### #???????????????????? | | ?????#######???# #???????????????????? | | ???????????????## ##???????????????????? | | ????????????????# #????????????????????? | | ????????????????# #????????????????????? | | ??????""""?""""?+ +????????????????????? | | ??????""""?""""?# #????????????????????? | | ??????""""?""""?# #????????????????????? | | ????????????????# #????????????????????? | | ????????????#######+########???????????????? | | ????????????# """"" """"" #???????????????? | | ????????????# """"" """"" "#???????????????? | | ????????????# """"" """"" T#???????????????? | | ????????????# sss "#???????????????? | | ????????????# @ #???????????????? | | ???????????#Y [ s #???????????????? | | ???????????########/########???????????????? | | ??????????????????# #??????????????????????? | | ??????????????????# #?????????????????????## | | ??????????????????# ?????????????????????# | | ??????????????????+ ?????????????????????# | | ??????????????????# ?????????????????????# | | ??????????????????# ?????????????????????# | | ??????????????????# ?????????????????????#% | | ??????????????????? ??????????????????????? | | ???????????????????k ??????????????????????? | | ??????????????????? ??????????????????????? | | ??????????????????? ?????????????????????? | | ??????????????????? ?????????????????????? | | ???????????????????k ?????????????????????# | | ??????????????????? ?????????????????????# | | ??????????????????? ?????????????????????# | | ???????????????????????????????????????????# | | ???????????????????????????????????????????# | | ??????????????????????????????????????###### | | ????????""????????????????????????????# """ | | ????????""????????????????????????????# "Y" | | ????????"T???"""??????????????????????# | | ????????""???"""??????????????????????# | +----------------------------------------------------+ Best States ------------- Heat Dissipation 28 Energy Generation 5 Energy Capacity 100 Matter Stores 170 Matter Capacity 300 Sight Range 18 Terrain Scan Density 10 Evasion (%) 62 Item Schematics ----------------- None Robot Schematics ------------------ None Fabricated ------------ Nothing Alien Tech Used ----------------- None Achievements -------------- None Challenges ------------ None Game ------ Seed BladeGatlingHammer Manual? 0 Play Time 00:05:15 Cumulative 195.1 hours Start 2024.08.11 @ 23:31:20 End 2024.08.11 @ 23:34:48 Sessions 1 Manual Loads 0 Difficulty Rogue Special Mode None Game No. 342 Rogue 340 Adventurer 2 Explorer 0 Win Type - Total 9 Types 8/0/0/1/0/0/0/0/0 Lore% 69 Gallery% 64 Achievement% 55 Wizard Run 0 Options --------- Layout 0 ASCII 0 Keyboard 1 Movement Numpad Keybinds 1 Fullscreen 2 Font 18/SmallcapsGlow Map View 76x50 Zoom Use 0% Tactical HUD 1 Map Filters NONE Filters NONE Steam 1 RUN: a8efd588-817e-475d-9b0a-304fe5725902